bitfinex-derivatives/quotes_ETHF0:USTF0_20250709
["timestamp","ask_amount","ask_price","bid_price","bid_amount"]
[1752031258778,1.328,2598.0,2597.9,1.46537]
[1752031259178,2.09765,2598.0,2597.7,0.76971]
[1752031259382,0.76969,2597.9,2597.7,0.76971]
[1752031259585,1.328,2598.0,2597.7,0.6957]
[1752031259586,1.4404,2597.8,2597.7,0.6957]
[1752031259789,1.4404,2597.8,2597.6,0.6313]
[1752031259990,1.4404,2597.8,2597.7,0.6957]
[1752031260290,0.6707,2597.8,2597.7,1.46543]
[1752031261386,1.92369,2598.6,2597.6,1.93752677]
[1752031261387,1.3443,2598.3,2597.6,3.86189677]
[1752031261594,0.76959,2598.2,2598.0,2.07586677]
[1752031261787,0.6707,2598.1,2597.8,0.76969]
[1752031262090,0.76968,2597.9,2597.6,0.6313]
[1752031262283,0.76968,2597.9,2597.7,0.76972]
[1752031262481,0.7697,2597.8,2597.7,0.76972]
[1752031262684,0.7697,2597.8,2597.7,1.46542]
[1752031262882,2.11399,2597.9,2597.7,0.76972]
[1752031263083,2.11399,2597.9,2597.6,0.6313]
[1752031263288,0.76971,2597.8,2597.7,0.76972]
[1752031263490,2.11399,2597.9,2597.7,0.76972]
[1752031263890,2.11399,2597.9,2597.8,0.76971]
[1752031264284,2.11399,2597.9,2597.8,1.46541]
[1752031265199,0.76973,2597.7,2597.6,0.6313]
[1752031265393,0.76972,2597.8,2597.7,0.76973]
[1752031266689,2.43752,2597.8,2597.7,0.76973]
[1752031267092,1.6678,2597.8,2597.7,0.76973]
[1752031267292,0.6707,2597.8,2597.7,1.46543]
[1752031267493,1.3443,2597.9,2597.8,0.7697]
[1752031267692,1.3443,2597.9,2597.8,1.4654]
[1752031267891,2.015,2597.9,2597.8,0.7697]
[1752031268095,2.015,2597.9,2597.8,1.4654]
[1752031268296,3.8606,2598.1,2597.8,1.6908]
[1752031268595,1.42243,2598.1,2598.0,0.76965]
[1752031268990,2.09313,2598.1,2598.0,1.46535]
[1752031269192,2.09313,2598.1,2598.0,0.6957]
[1752031269393,0.76965,2598.0,2597.9,0.76966]
[1752031269595,1.44035,2598.0,2597.9,1.46536]
[1752031270393,1.44035,2598.0,2597.9,1.21618064]
[1752031270593,3.74935,2598.0,2597.9,1.21618064]
[1752031270794,3.74935,2598.0,2597.9,1.98586064]
[1752031271394,3.74935,2598.0,2597.9,1.21618064]
[1752031272002,1.9826,2598.0,2597.9,1.98586064]
[1752031272299,0.6707,2598.0,2597.9,3.29208741]
[1752031272795,0.6438,2598.3,2597.9,2.52240741]
[1752031272988,3.97742,2598.1,2598.0,0.51990148]
[1752031273188,0.76978,2597.6,2597.5,0.76978]
[1752031273394,1.6678,2597.6,2597.2,3.2078]
[1752031273691,0.7699,2597.2,2596.9,3.2078]
[1752031273894,0.7699,2597.2,2597.1,0.76991]
[1752031274095,2.07609677,2597.3,2597.1,0.76991]
[1752031274299,0.6707,2597.2,2597.1,1.46561]
[1752031274501,1.44058,2597.2,2597.1,0.76991]
[1752031274799,0.6707,2597.2,2597.1,1.46561]
[1752031274999,1.44058,2597.2,2597.1,1.46561]
[1752031275193,0.6707,2597.2,2597.1,1.46561]
[1752031275388,0.76986,2597.3,2597.2,0.76988]
[1752031275699,1.44056,2597.3,2597.2,0.76988]
[1752031276099,1.44056,2597.3,2597.2,1.42908]
[1752031276301,1.44056,2597.3,2597.2,0.76988]
[1752031276496,1.44055,2597.3,2597.2,1.42908]
[1752031277700,1.44055,2597.3,2597.2,0.6592]
[1752031277901,1.44055,2597.3,2597.2,1.42908]
[1752031278397,1.44055,2597.3,2597.2,0.6592]
[1752031278899,1.44055,2597.3,2597.2,1.42908]
[1752031279101,3.03232876,2597.3,2597.2,1.42908]
[1752031279502,2.26247876,2597.3,2597.2,1.42908]
[1752031280096,3.03232876,2597.3,2597.2,1.42908]
[1752031280296,3.03232876,2597.3,2597.2,0.6592]
[1752031280698,3.03232876,2597.3,2597.2,1.42908]
[1752031281503,3.03232876,2597.3,2597.2,0.6592]
[1752031281895,3.03232876,2597.3,2597.2,1.42908]
[1752031282100,2.26247876,2597.3,2597.2,1.42908]
[1752031282602,3.03232876,2597.3,2597.2,1.42908]
[1752031283203,1.59177876,2597.3,2597.2,1.42908]
[1752031283404,2.22867876,2597.3,2597.2,1.42908]
[1752031283804,2.99852876,2597.3,2597.2,1.42908]
[1752031284005,2.99852876,2597.3,2597.2,0.6592]
[1752031284407,3.98042876,2597.3,2597.2,0.6592]
[1752031284808,0.76988,2597.2,2597.1,0.7699]
[1752031285107,1.40678,2597.2,2597.1,0.7699]
[1752031285307,2.38868,2597.2,2597.1,0.7699]
[1752031285504,0.76991,2597.1,2597.0,0.76992]
[1752031285705,1.43071,2597.1,2597.0,0.76992]
[1752031285908,2.06761,2597.1,2597.0,1.42912]
[1752031286208,0.76997,2597.0,2596.9,0.76996]
[1752031286605,2.38877,2597.0,2596.9,0.76996]
[1752031286805,2.38877,2597.0,2596.8,0.6382]
[1752031286806,0.76997,2596.9,2596.8,1.40818]
[1752031287103,0.76997,2597.0,2596.9,0.76997]
[1752031287307,0.6369,2597.0,2596.9,0.6592]
[1752031287506,1.43072,2597.1,2597.0,0.76994]
[1752031287709,2.06762,2597.1,2597.0,1.42914]
[1752031288510,1.2977,2597.1,2597.0,1.42914]
[1752031288904,3.2078,2597.2,2597.1,0.76991]
[1752031289103,4.80441875,2597.2,2597.1,1.42911]
[1752031289304,6.21119875,2597.2,2597.1,1.42911]
[1752031289504,5.57429875,2597.2,2597.1,1.42911]
[1752031290211,4.61458,2597.2,2597.1,1.42911]
[1752031291515,0.6369,2597.2,2597.1,1.42911]
[1752031291716,1.40678,2597.2,2597.1,1.42911]
[1752031291906,1.6188,2597.2,2596.8,1.8983]
[1752031292214,2.3887,2597.2,2597.1,1.42911]
[1752031292412,2.3887,2597.2,2597.1,0.76991]
[1752031293114,2.3887,2597.2,2597.1,1.42911]
[1752031293415,2.3887,2597.2,2597.1,0.6592]
[1752031293614,5.5965,2597.2,2597.1,0.6592]
[1752031294417,0.76991,2597.1,2597.0,0.76994]
[1752031294620,1.40681,2597.1,2597.0,1.42914]
[1752031296813,1.40681,2597.1,2597.0,0.6592]
[1752031297014,2.38871,2597.1,2597.0,0.6592]
[1752031297317,3.65871,2597.1,2597.0,0.6592]
[1752031299821,3.65871,2597.1,2597.0,1.42914]
[1752031300021,1.40681,2597.1,2597.0,1.42914]
[1752031300222,3.2078,2597.2,2597.1,0.76991]
[1752031300522,4.80532646,2597.2,2597.1,1.42911]
[1752031301116,5.44222646,2597.2,2597.1,1.42911]
[1752031301519,6.21210646,2597.2,2597.1,1.42911]
[1752031301714,6.21210646,2597.2,2597.1,0.6592]
[1752031302722,6.21210646,2597.2,2597.1,1.42911]
[1752031303430,6.21210646,2597.2,2597.1,0.6592]
[1752031303721,6.21210646,2597.2,2597.1,1.42911]
[1752031303922,5.44222646,2597.2,2597.1,1.42911]
[1752031304114,2.23442646,2597.2,2597.1,3.68944093]
[1752031305421,2.23442646,2597.2,2597.1,2.73424093]
[1752031305823,3.00430646,2597.2,2597.1,2.73424093]
[1752031306830,3.00430646,2597.2,2597.1,1.42911]
[1752031307220,3.00430646,2597.2,2597.1,0.6592]
[1752031307422,1.40678,2597.2,2597.1,0.6592]
[1752031307729,3.95929876,2597.2,2597.1,0.6592]
[1752031307921,7.16709876,2597.2,2597.1,0.6592]
[1752031308327,0.76994,2597.0,2596.9,0.76997]
[1752031308533,0.76997,2596.9,2596.8,0.6382]
[1752031308829,2.10837,2596.9,2596.8,2.04109]
[1752031309420,1.3384,2596.9,2596.8,2.04109]
[1752031309822,1.3728,2597.1,2597.0,0.76994]
[1752031310030,1.60029783,2597.1,2597.0,1.40284]
[1752031310727,1.60029783,2597.1,2597.0,2.42424]
[1752031310927,2.28769783,2597.1,2597.0,2.42424]
[1752031311127,1.60029783,2597.1,2597.0,2.42424]
[1752031311431,2.28769783,2597.1,2597.0,2.42424]
[1752031311626,1.60029783,2597.1,2597.0,2.42424]
[1752031312234,2.28769783,2597.1,2597.0,2.42424]
[1752031312433,1.60029783,2597.1,2597.0,2.42424]
[1752031313434,0.6822,2597.3,2597.2,0.76988]
[1752031313622,1.3696,2597.3,2597.2,1.40278]
[1752031313826,2.97064529,2597.3,2597.2,1.40278]
[1752031314027,0.7699,2597.2,2596.8,1.9729]
[1752031314234,1.60104529,2597.1,2597.0,0.76994]
[1752031314530,2.28844529,2597.1,2597.0,1.40284]
[1752031318835,2.28844529,2597.1,2597.0,2.42424]
[1752031319032,1.60104529,2597.1,2597.0,2.42424]
[1752031319237,5.49176404,2597.5,2597.1,1.92478]
[1752031319432,6.80866404,2597.5,2597.4,1.40272]
[1752031319631,6.12435797,2597.5,2597.4,2.70785093]
[1752031320534,6.12435797,2597.5,2597.4,0.76982]
[1752031320735,0.76982,2597.4,2597.3,0.76983]
[1752031320933,4.43437797,2597.4,2597.3,0.76983]
[1752031321135,5.38667797,2597.4,2597.3,0.76983]
[1752031321336,4.61685797,2597.4,2597.3,0.76983]
[1752031321538,4.61685797,2597.4,2597.3,1.40273]
[1752031321835,4.43437797,2597.4,2597.3,1.40273]
[1752031322044,3.66455797,2597.4,2597.3,1.40273]
[1752031322246,2.28705797,2597.4,2597.3,1.40273]
[1752031322539,1.59965797,2597.4,2597.3,2.42413]
[1752031323331,2.28705797,2597.4,2597.3,2.42413]
[1752031325540,2.28705797,2597.4,2597.3,3.72926093]
[1752031326443,2.28705797,2597.4,2597.3,1.40273]
[1752031326444,3.05687797,2597.4,2597.3,1.40273]
[1752031326642,2.28705797,2597.4,2597.3,1.40273]
[1752031327535,4.00919797,2597.4,2597.3,0.76985]
[1752031327731,5.35049797,2597.4,2597.3,0.76985]
[1752031328129,4.58065797,2597.4,2597.3,1.40275]
[1752031328840,5.35047797,2597.4,2597.3,0.76985]
[1752031329042,5.35047797,2597.4,2597.3,1.40275]
[1752031330042,5.35047797,2597.4,2597.3,0.6329]
[1752031330542,5.35047797,2597.4,2597.3,1.40275]
[1752031331243,5.35047797,2597.4,2597.3,0.6329]
[1752031331541,3.71077797,2597.4,2597.3,0.76985]
[1752031331743,5.35047797,2597.4,2597.3,0.76985]
[1752031332138,4.58065797,2597.4,2597.3,0.76985]
[1752031332339,4.58065797,2597.4,2597.3,1.40275]
[1752031332543,3.23935797,2597.4,2597.3,1.40275]
[1752031332744,2.28705797,2597.4,2597.3,1.40275]
[1752031333139,1.59965797,2597.4,2597.3,1.40275]
[1752031333345,2.28705797,2597.4,2597.3,2.42415]
[1752031333644,2.28705797,2597.4,2597.3,1.40275]
[1752031334033,2.28705797,2597.4,2597.3,0.6329]
[1752031334034,3.05687797,2597.4,2597.3,0.6329]
[1752031334240,4.00917797,2597.4,2597.3,0.76985]
[1752031334545,0.76987,2597.3,2597.2,0.76985]
[1752031334744,5.35612797,2597.3,2597.2,0.76985]
[1752031334941,5.35612797,2597.3,2597.2,1.40275]
[1752031336146,4.58625797,2597.3,2597.2,1.40275]
[1752031336340,5.35610797,2597.3,2597.2,1.40275]
[1752031336542,5.3558033,2597.3,2597.2,1.40275]
[1752031336739,1.5993533,2597.3,2597.2,2.46595]
[1752031336946,0.76976,2597.7,2597.2,3.00123093]
[1752031337247,1.59942746,2597.6,2597.5,0.76976]
[1752031337544,2.25352746,2597.6,2597.5,0.76976]
[1752031338245,2.25352746,2597.6,2597.5,1.40946]
[1752031339443,2.25352746,2597.6,2597.5,2.77146]
[1752031340247,1.59942746,2597.6,2597.5,3.44616]
[1752031340444,1.59942746,2597.6,2597.5,4.48016]
[1752031341340,2.28396404,2598.1,2598.0,0.76965]
[1752031341540,4.53724937,2598.1,2598.0,0.76965]
[1752031341743,0.76965,2598.0,2597.7,1.30513093]
[1752031341939,1.59918533,2597.9,2597.8,0.7697]
[1752031342447,2.25328533,2597.9,2597.8,1.4444]
[1752031342847,2.25328533,2597.9,2597.8,0.7697]
[1752031343050,2.25328533,2597.9,2597.8,1.4444]
[1752031345644,1.59918533,2597.9,2597.8,2.4784]
[1752031346149,2.25328533,2597.9,2597.8,1.4444]
[1752031346347,3.02296533,2597.9,2597.8,1.4444]
[1752031346949,2.25328533,2597.9,2597.8,1.4444]
[1752031348444,3.02296533,2597.9,2597.8,1.4444]
[1752031349047,3.02296533,2597.9,2597.5,0.6397]
[1752031349048,7.75051626,2597.9,2597.5,0.6397]
[1752031349346,7.75051626,2597.9,2597.6,0.76974]
[1752031349347,0.76975,2597.7,2597.6,0.76974]
[1752031349549,3.02303533,2597.7,2597.6,0.76974]
[1752031349740,5.30933533,2597.7,2597.6,0.76974]
[1752031349947,3.55528533,2597.7,2597.6,1.44444]
[1752031350648,4.32501533,2597.7,2597.6,1.44444]
[1752031351040,4.32501533,2597.7,2597.6,0.6747]
[1752031352447,4.32501533,2597.7,2597.6,1.44446]
[1752031352850,4.53958533,2597.7,2597.3,3.8468]
[1752031353053,0.76981,2597.5,2597.3,4.61663]
[1752031353352,0.76981,2597.5,2597.4,0.76982]
[1752031353744,1.42391,2597.5,2597.4,1.44452]
[1752031354055,1.42391,2597.5,2597.2,0.76987]
[1752031354056,0.76987,2597.3,2597.2,0.76987]
[1752031354457,1.42397,2597.3,2597.2,1.44457]
[1752031354755,0.6284,2597.4,2597.3,0.76985]
[1752031354950,1.2825,2597.4,2597.3,2.74968093]
[1752031355349,0.6541,2597.4,2597.3,1.97983093]
[1752031355556,0.76982,2597.4,2597.3,1.44453]
[1752031355749,0.6541,2597.4,2597.3,1.44453]
[1752031356353,1.42392,2597.4,2597.3,1.44453]
[1752031357858,2.40822,2597.4,2597.3,0.6747]
[1752031358052,3.66512,2597.4,2597.3,0.6747]
[1752031358359,2.8953,2597.4,2597.1,0.76989]
[1752031358560,0.76989,2597.2,2597.1,0.76989]
[1752031358753,1.42399,2597.2,2597.1,1.44459]
[1752031358949,2.09969,2597.2,2597.1,0.76989]
[1752031359353,2.09969,2597.2,2597.1,1.44459]
[1752031359754,1.3298,2597.2,2597.1,1.44459]
[1752031359954,2.09968,2597.2,2597.1,1.44459]
[1752031360357,1.3298,2597.2,2597.1,1.44459]
[1752031360759,2.09968,2597.2,2597.1,1.44459]
[1752031364062,1.3298,2597.2,2597.1,1.44459]
[1752031364262,2.09968,2597.2,2597.1,1.44459]
[1752031365260,1.3298,2597.2,2597.1,1.44459]
[1752031367366,2.09968,2597.2,2597.1,1.44459]
[1752031367563,1.3298,2597.2,2597.1,1.44459]
[1752031369965,1.3045,2597.2,2597.1,1.44459]
[1752031370167,0.6757,2597.2,2597.1,1.44459]
[1752031370366,1.3045,2597.2,2597.1,1.44459]
[1752031370568,1.3045,2597.2,2597.1,2.47479]
[1752031370961,0.6288,2597.2,2597.1,2.47479]
[1752031371368,0.6288,2597.2,2597.1,1.44459]
[1752031374473,0.6288,2597.2,2597.1,2.47479]
[1752031374867,0.6341,2597.5,2597.4,0.76982]
[1752031375067,2.23439722,2597.5,2597.4,2.74245093]
[1752031375269,2.86319722,2597.5,2597.4,2.74245093]
[1752031375671,3.63299722,2597.5,2597.4,1.30513093]
[1752031375874,0.76982,2597.4,2597.3,0.76984]
[1752031376071,2.22909722,2597.4,2597.3,1.43734]
[1752031376476,1.60029722,2597.4,2597.3,1.43734]
[1752031376971,1.60029722,2597.4,2597.3,2.46754]
[1752031377372,2.22909722,2597.4,2597.3,2.46754]
[1752031377571,1.60029722,2597.4,2597.3,2.46754]
[1752031377772,1.60029722,2597.4,2597.3,3.79444]
[1752031378076,1.59952917,2597.4,2597.3,3.79445]
[1752031379175,2.36934917,2597.4,2597.3,3.79445]
[1752031379677,2.99814917,2597.4,2597.3,3.0246]
[1752031379878,2.99814917,2597.4,2597.3,0.6675]
[1752031380078,0.76988,2597.2,2597.1,0.7699]
[1752031380380,1.39868,2597.2,2597.1,2.4676]
[1752031380776,1.39868,2597.2,2597.1,2.46761]
[1752031381976,1.39868,2597.2,2597.1,1.6977]
[1752031382373,1.39868,2597.2,2597.1,2.46761]
[1752031382572,0.6288,2597.2,2597.1,2.46761]
[1752031385976,1.39868,2597.2,2597.1,2.46761]
[1752031386377,0.76991,2597.1,2597.0,3.8941]
[1752031386676,1.39871,2597.1,2597.0,3.8941]
[1752031386879,1.39871,2597.1,2597.0,0.6863]
[1752031387081,1.39871,2597.1,2597.0,1.3538]
[1752031388775,1.39871,2597.1,2597.0,2.12374]
[1752031389383,1.39871,2597.1,2597.0,1.3538]
[1752031389581,0.6288,2597.1,2597.0,2.12374]
[1752031390181,0.6288,2597.1,2597.0,1.43744]
[1752031390483,1.6495,2597.1,2597.0,1.43744]
[1752031390780,3.25012159,2597.1,2597.0,1.43744]
[1752031390981,4.02003159,2597.1,2597.0,1.43744]
[1752031391183,3.25012159,2597.1,2597.0,1.43744]
[1752031391578,4.02003159,2597.1,2597.0,1.43744]
[1752031392685,3.25012159,2597.1,2597.0,1.43744]
[1752031393383,4.02003159,2597.1,2597.0,1.43744]
[1752031395680,3.25012159,2597.1,2597.0,1.43744]
[1752031395887,2.22942159,2597.1,2597.0,1.43744]
[1752031398486,2.99933159,2597.1,2597.0,1.43744]
[1752031398985,2.22942159,2597.1,2597.0,1.43744]
[1752031403385,1.60062159,2597.1,2597.0,1.43744]
[1752031403583,2.27842159,2597.1,2597.0,1.43744]
[1752031403782,1.60062159,2597.1,2597.0,2.40754]
[1752031404787,2.27842159,2597.1,2597.0,2.40754]
[1752031406590,0.76997,2596.9,2596.8,0.77]
[1752031406790,1.44777,2596.9,2596.8,0.77]
[1752031406986,2.44087,2596.9,2596.8,0.77]
[1752031407187,2.44087,2596.9,2596.6,0.6537]
[1752031407188,1.6709,2596.9,2596.6,0.6537]
[1752031407491,0.77005,2596.7,2596.5,0.77008]
[1752031407691,3.06212,2596.8,2596.6,0.77006]
[1752031407990,0.6778,2596.7,2596.6,0.77006]
[1752031408190,0.6778,2596.7,2596.6,1.40636]
[1752031408385,3.97776,2597.0,2596.6,1.6064]
[1752031408586,3.2078,2597.0,2596.9,0.76997]
[1752031408782,3.2078,2597.0,2596.9,1.40627]
[1752031408983,3.2078,2597.0,2596.9,2.03457]
[1752031409184,3.2078,2597.3,2597.2,0.76986]
[1752031409390,5.48347507,2597.3,2597.2,0.76986]
[1752031409691,5.48347507,2597.3,2597.2,1.40616]
[1752031410187,5.48347507,2597.3,2597.1,2.07502093]
[1752031410491,1.59787507,2597.2,2597.1,2.07502093]
[1752031410894,1.59787507,2597.2,2597.1,3.68142093]
[1752031411693,2.27567507,2597.2,2597.1,3.68142093]
[1752031412083,1.59787507,2597.2,2597.1,3.68142093]
[1752031412285,2.27567507,2597.2,2597.1,3.68142093]
[1752031415196,2.27567507,2597.2,2597.1,2.71132093]
[1752031416593,2.27567507,2597.2,2597.1,1.40619]
[1752031418695,3.04555507,2597.2,2597.1,0.76991]
[1752031418897,0.76991,2597.1,2597.0,0.76992]
[1752031419396,1.44771,2597.1,2597.0,1.40622]
[1752031419892,0.6778,2597.1,2597.0,1.40622]
[1752031420291,1.3676,2597.1,2597.0,1.40622]
[1752031420489,1.3121,2597.4,2597.0,3.68145093]
[1752031420692,3.05890623,2597.3,2597.2,0.76988]
[1752031420892,3.73670623,2597.3,2597.2,1.40618]
[1752031421098,3.73670623,2597.3,2597.2,0.76988]
[1752031421298,3.73670623,2597.3,2597.2,1.40618]
[1752031422092,2.96685623,2597.3,2597.2,1.40618]
[1752031423499,3.73670623,2597.3,2597.2,1.40618]
[1752031423798,2.96685623,2597.3,2597.2,1.40618]
[1752031424796,3.73670623,2597.3,2597.2,1.40618]
[1752031425890,2.96685623,2597.3,2597.2,1.40618]
[1752031426096,3.73670623,2597.3,2597.2,1.40618]
[1752031426397,3.73670623,2597.3,2597.2,0.6363]
[1752031426701,4.72980623,2597.3,2597.2,1.40618]
[1752031426891,4.72980623,2597.3,2597.2,0.6363]
[1752031430404,0.76988,2597.2,2597.1,0.7699]
[1752031430603,2.36913623,2597.2,2597.1,0.7699]
[1752031430797,0.76992,2597.1,2597.0,0.76992]
[1752031432603,1.43452,2597.1,2597.0,1.43892]
[1752031433099,1.43452,2597.1,2597.0,0.669]
[1752031433303,1.43452,2597.1,2597.0,1.43894]
[1752031434905,3.03295249,2597.1,2597.0,1.43894]
[1752031435107,4.05755249,2597.1,2597.0,0.669]
[1752031436308,0.76994,2597.0,2596.9,0.76996]
[1752031436503,3.68967249,2597.0,2596.9,0.76996]
[1752031436807,3.94433249,2597.0,2596.9,1.43896]
[1752031437007,2.91973249,2597.0,2596.9,1.43896]
[1752031440304,1.59843249,2597.0,2596.9,2.38236]
[1752031440509,1.60177652,2597.0,2596.9,3.67577]
[1752031442713,3.2078,2597.3,2597.2,0.76988]
[1752031442907,5.47527318,2597.3,2597.2,1.43888]
[1752031444004,2.26747318,2597.3,2597.2,1.43888]
[1752031444207,3.29207318,2597.3,2597.2,0.76988]
[1752031445114,4.59317318,2597.3,2597.2,0.76988]
[1752031448614,4.59317318,2597.3,2597.2,1.43888]
[1752031448808,3.56857318,2597.3,2597.2,1.43888]
[1752031449115,2.26747318,2597.3,2597.2,1.43888]
[1752031449504,2.26747318,2597.3,2597.2,2.38228]
[1752031455814,1.60287318,2597.3,2597.2,2.38228]
[1752031456012,5.49176404,2597.9,2597.2,2.38228]
[1752031456319,3.2078,2597.9,2597.8,0.76971]
[1752031456515,3.8919,2597.9,2597.8,1.43771]
[1752031457716,4.66158,2597.9,2597.8,0.668]
[1752031457915,0.76971,2597.8,2597.7,0.6523]
[1752031458115,1.45381,2597.8,2597.7,0.76973]
[1752031458411,2.42711,2597.8,2597.7,0.76973]
[1752031458612,2.42711,2597.8,2597.1,29.6248]
[1752031458613,0.76986,2597.3,2597.2,0.76986]
[1752031458920,2.42726,2597.3,2597.2,1.43786]
[1752031459218,2.42726,2597.3,2597.2,0.76986]
[1752031459811,3.78896,2597.3,2597.2,0.76986]
[1752031460111,0.76988,2597.2,2597.1,3.9777]
[1752031460312,1.45398,2597.2,2597.1,3.9777]
[1752031460514,1.6574,2597.2,2597.1,3.9777]
[1752031460711,0.6841,2597.2,2597.1,3.9777]
[1752031461217,0.6841,2597.2,2597.1,4.6457]
[1752031463012,0.6841,2597.2,2597.1,1.4379]
[1752031464214,0.6262,2597.4,2597.3,0.76985]
[1752031464414,3.97757,2597.6,2597.5,0.76979]
[1752031464615,5.34507,2597.6,2597.5,1.43779]
[1752031465920,2.13727,2597.6,2597.5,1.43779]
[1752031466523,2.13726,2597.6,2597.5,1.43779]
[1752031466921,1.3675,2597.6,2597.5,1.43779]
[1752031467417,2.13726,2597.6,2597.5,1.43779]
[1752031467928,2.9685166,2597.6,2597.5,1.43779]
[1752031468117,2.2844166,2597.6,2597.5,3.71702093]
[1752031468317,2.9685166,2597.6,2597.5,3.71702093]
[1752031470225,2.2851166,2597.6,2597.5,3.71702093]
[1752031470420,1.6010166,2597.6,2597.5,3.71702093]
[1752031470826,0.6558,2597.8,2597.7,0.76973]
[1752031471021,2.25730889,2597.8,2597.7,2.74286093]
[1752031471323,2.25730889,2597.8,2597.7,3.71696093]
[1752031471526,2.94140889,2597.8,2597.7,3.71696093]
[1752031471728,2.25730889,2597.8,2597.7,3.71696093]
[1752031471928,2.94140889,2597.8,2597.7,3.71696093]
[1752031473735,2.94140889,2597.8,2597.7,1.43773]
[1752031474134,2.94140889,2597.8,2597.7,2.12903]
[1752031476234,2.28560889,2597.8,2597.7,3.10313]
[1752031482035,2.28560889,2597.8,2597.7,2.12903]
[1752031483040,2.28560889,2597.8,2597.7,1.46103]
[1752031483238,3.25890889,2597.8,2597.7,0.76973]
[1752031483632,5.28620889,2597.8,2597.7,0.76973]
[1752031483834,6.05590889,2597.8,2597.7,0.76973]
[1752031485337,5.28620889,2597.8,2597.7,0.76973]
[1752031485539,2.24520889,2597.8,2597.7,1.43773]
[1752031485841,2.27840889,2597.8,2597.7,1.43773]
[1752031486042,1.60150889,2597.8,2597.7,2.09093]
[1752031486341,2.27840889,2597.8,2597.7,2.09093]
[1752031487039,3.31340889,2597.8,2597.7,2.09093]
[1752031487234,3.31340889,2597.8,2597.3,3.2078]
[1752031487235,4.61853982,2597.8,2597.3,3.2078]
[1752031487439,2.07490093,2597.6,2597.5,0.76979]
[1752031487638,5.38830982,2597.6,2597.5,0.76979]
[1752031487941,6.74290982,2597.6,2597.5,0.76979]
[1752031488340,5.43776889,2597.6,2597.5,0.76979]
[1752031488942,5.43776889,2597.6,2597.5,1.43379]
[1752031489745,4.66800889,2597.6,2597.5,1.43379]
[1752031490845,5.43776889,2597.6,2597.5,1.43379]
[1752031491140,4.08316889,2597.6,2597.5,1.43379]
[1752031491348,3.31340889,2597.6,2597.5,1.43379]
[1752031491742,4.08316889,2597.6,2597.5,1.43379]
[1752031491948,5.35766889,2597.6,2597.5,0.664]
[1752031492248,5.35766889,2597.6,2597.5,0.76979]
[1752031492550,0.7698,2597.5,2597.3,3.2078]
[1752031492743,3.0793,2597.5,2597.4,0.76981]
[1752031492945,4.95007655,2597.5,2597.4,0.76981]
[1752031493138,5.62697655,2597.5,2597.4,0.76981]
[1752031493537,5.06133093,2597.5,2597.4,0.76981]
[1752031493742,6.66193086,2597.5,2597.4,0.76981]
[1752031496149,5.89213086,2597.5,2597.4,0.76981]
[1752031497046,2.27749993,2597.5,2597.4,1.79480853]
[1752031497344,2.27749993,2597.5,2597.4,1.13080853]
[1752031497549,2.27749993,2597.5,2597.4,1.79480853]
[1752031497953,1.98870138,2597.5,2597.4,1.79480853]
[1752031498449,1.98870138,2597.5,2597.4,1.13080853]
[1752031498450,1.60059993,2597.5,2597.4,1.13080853]
[1752031498651,1.60059993,2597.5,2597.4,2.79570853]
[1752031498849,1.60059993,2597.5,2597.4,4.18420853]
[1752031500646,1.035,2598.0,2597.9,0.76967]
[1752031500846,3.29110356,2598.0,2597.9,1.13066853]
[1752031501540,3.29110356,2598.0,2597.9,1.13061824]
[1752031501944,2.25610356,2598.0,2597.9,1.13061824]
[1752031502142,3.02574356,2598.0,2597.9,1.13061824]
[1752031502547,2.25610356,2598.0,2597.9,1.13061824]
[1752031502753,3.02574356,2598.0,2597.9,1.13061824]
[1752031503953,2.73698597,2598.0,2597.9,1.13061824]
[1752031504455,3.77198597,2598.0,2597.9,0.36094824]
[1752031504654,3.77198597,2598.0,2597.9,1.13061824]
[1752031504853,3.00234597,2598.0,2597.9,1.13061824]
[1752031505053,3.77198597,2598.0,2597.9,1.13061824]
[1752031505254,3.77198597,2598.0,2597.9,1.79461824]
[1752031505455,2.73698597,2598.0,2597.9,1.79461824]
[1752031505751,1.96734597,2598.0,2597.9,1.79461824]
[1752031505953,2.73698597,2598.0,2597.9,1.79461824]
[1752031506350,2.73698597,2598.0,2597.9,1.13061824]
[1752031506551,2.73698597,2598.0,2597.9,1.79461824]
[1752031506950,2.06008597,2598.0,2597.9,1.79461824]
[1752031507154,1.96734597,2598.0,2597.9,1.79461824]
[1752031507350,2.73698597,2598.0,2597.9,1.79461824]
[1752031507750,1.96734597,2598.0,2597.9,1.79461824]
[1752031507951,2.73698597,2598.0,2597.9,1.79461824]
[1752031508955,2.06008597,2598.0,2597.9,1.79461824]
[1752031509454,2.73698597,2598.0,2597.9,1.79461824]
[1752031509855,2.44822894,2598.0,2597.9,1.79461824]
[1752031510056,2.44822894,2598.0,2597.9,1.43367]
[1752031510457,3.11082894,2598.0,2597.9,1.43367]
[1752031510761,2.43392894,2598.0,2597.9,1.43367]
[1752031511055,1.77132894,2598.0,2597.9,2.43457]
[1752031511458,2.44822894,2598.0,2597.9,1.43367]
[1752031514757,0.76967,2597.9,2597.8,0.6369]
[1752031514960,0.76975,2597.7,2597.6,0.76974]
[1752031515159,0.6769,2597.7,2597.6,1.43374]
[1752031515351,1.40459,2597.9,2597.8,0.7697]
[1752031515556,0.76967,2598.0,2597.9,0.76967]
[1752031515756,0.76967,2597.9,2597.8,1.77058]
[1752031516158,1.43917,2597.9,2597.8,2.43018]
[1752031516759,1.43917,2597.9,2597.8,1.42928]
[1752031517766,0.6695,2597.9,2597.8,1.42928]
[1752031518065,1.43917,2597.9,2597.8,1.42928]
[1752031521867,3.01124019,2597.9,2597.8,1.42928]
[1752031522370,4.04094019,2597.9,2597.8,1.42928]
[1752031522667,3.01124019,2597.9,2597.8,1.42928]
[1752031524864,3.01124019,2597.9,2597.8,0.6596]
[1752031525061,0.76984,2597.4,2597.3,0.76982]
[1752031525265,1.43934,2597.4,2597.3,1.42942]
[1752031525664,0.6695,2597.4,2597.3,1.42942]